lending/lending_fUSD_20260317
["ID","MTS","AMOUNT","RATE_DAILY","PERIOD"]
[408479025,1773718243889,-500.0,0.00014403,2]
[408479026,1773718243899,-500.0,0.00014403,2]
[408479027,1773718243908,-163.77720757,0.00014403,2]
[408479028,1773718243918,-500.0,0.00014403,2]
[408479029,1773718243927,-156.14947479,0.00014403,2]
[408479030,1773718243937,-1000.0,0.00014404,2]
[408479031,1773718243946,-7898.33821051,0.00014404,2]
[408479032,1773718243955,-193890.59944836,0.00014404,2]
[408479033,1773718243968,-132984.91362311,0.00014404,2]
[408479034,1773718243977,-209.98366809,0.00014504,2]
[408479035,1773718243986,-154.18409113,0.00014541,2]
[408479036,1773718243997,-500.0,0.00014575,2]
[408479037,1773718244006,-451.91,0.00014627,2]
[408479038,1773718244016,-9312.15385645,0.00014767,2]
[408479039,1773718244025,-263.0,0.00014865,2]
[408479040,1773718244041,-3963.67475558,0.0001488,2]
[408479041,1773718244054,-451.91,0.00014901,2]
[408479042,1773718244064,-250.0,0.00015,2]
[408479043,1773718244074,-7898.33821042,0.00015015,2]
[408479044,1773718244083,-549.07,0.00015068,2]
[408479045,1773718244092,-185.05,0.00015093,2]
[408479046,1773718244103,-255.0,0.00015133,2]
[408479047,1773718244112,-1203.86256138,0.00015163,2]
[408479048,1773718244121,-451.91,0.00015175,2]
[408479049,1773718244130,-1785.3792934,0.00015233,2]
[408479050,1773718244140,-2000.0,0.00015274,2]
[408479051,1773718244149,-2000.0,0.00015333,2]
[408479052,1773718244158,-2000.0,0.00015433,2]
[408479053,1773718244168,-451.91714716,0.00015449,2]
[408479054,1773718244177,-1012.89,0.00015507,2]
[408479055,1773718244187,-3963.67475558,0.00015508,2]
[408479056,1773718244196,-2000.0,0.00015533,2]
[408479057,1773718244205,-7898.33821042,0.00015625,2]
[408479058,1773718244214,-2000.0,0.00015633,2]
[408479059,1773718244223,-587.0,0.00015689,2]
[408479060,1773718244232,-2000.0,0.00015733,2]
[408479061,1773718244241,-185.05,0.00015749,2]
[408479062,1773718244251,-549.07,0.00015753,2]
[408479063,1773718244260,-2351.0,0.00015786,2]
[408479064,1773718244269,-500.0,0.00015833,2]
[408479065,1773718244280,-1100.0,0.00015833,2]
[408479066,1773718244289,-1200.0,0.00015833,2]
[408479067,1773718244299,-2000.0,0.00015833,2]
[408479068,1773718244308,-929.37600956,0.00015886,2]
[408479069,1773718244317,-160.0,0.00015886,2]
[408479070,1773718244326,-151.0,0.00015887,2]
[408479071,1773718244343,-2000.0,0.0001589,2]
[408479072,1773718244359,-1012.89,0.00015895,2]
[408479073,1773718244368,-271.64297557,0.00015903,2]
[408479074,1773718244378,-500.0,0.00015903,2]
[408479075,1773718244387,-500.0,0.00015903,2]
[408479076,1773718244396,-476.30864387,0.00015903,2]
[408479077,1773718244406,-500.0,0.00015903,2]
[408479078,1773718244415,-640.16080876,0.00015903,2]
[408479079,1773718244424,-500.0,0.00015903,2]
[408479080,1773718244433,-500.0,0.00015903,2]
[408479081,1773718244443,-500.0,0.00015903,2]
[408479082,1773718244451,-500.0,0.00015903,2]
[408479083,1773718244464,-500.0,0.00015903,2]
[408479084,1773718244473,-1538.0,0.00015904,2]
[408479085,1773718244482,-1538.0,0.00015924,2]
[408479086,1773718244491,-2000.0,0.00015933,2]
[408479087,1773718244500,-1203.86256138,0.00015952,2]
[408479088,1773718244510,-179.619,0.00016,2]
[408479089,1773718244519,-2000.0,0.00016033,2]
[408479090,1773718244528,-317.0,0.000161,5]
[408479091,1773718244538,-824.0,0.000161,2]
[408479092,1773718244547,-2000.0,0.00016133,2]
[408479093,1773718244556,-3963.67475558,0.00016135,2]
[408479094,1773718244565,-150.0,0.00016169,14]
[408479095,1773718244573,-315.0,0.00016205,2]
[408479096,1773718244582,-422.0752715,0.0001621,2]
[408479097,1773718244591,-2000.0,0.00016233,2]
[408479098,1773718244600,-7898.33821042,0.00016236,2]
[408479099,1773718244609,-1012.89,0.00016282,2]
[408479100,1773718244618,-433.0,0.00016338,2]
[408479101,1773718244627,-263.0,0.00016352,2]
[408479102,1773718244636,-513.0,0.00016363,4]
[408479103,1773718244645,-185.05,0.00016405,2]
[408479104,1773718244654,-549.07,0.00016438,2]
[408479105,1773718244664,-250.0,0.00016438,2]
[408479106,1773718244673,-250.0,0.00016438,2]
[408479107,1773718244682,-250.0,0.00016438,2]
[408479108,1773718244691,-250.0,0.00016438,2]
[408479109,1773718244701,-250.0,0.00016438,2]
[408479110,1773718244710,-250.0,0.00016438,2]
[408479111,1773718244719,-250.0,0.00016438,2]
[408479112,1773718244729,-250.0,0.00016438,2]
[408479113,1773718244738,-160.0,0.00016452,7]
[408479114,1773718244747,-278.37513,0.00016452,7]
[408479115,1773718244756,-396.750261,0.00016452,7]
[408479116,1773718244766,-161.737252,0.00016452,7]
[408479117,1773718244775,-160.0,0.00016455,7]
[408479118,1773718244786,-216.786388,0.00016455,7]
[408479119,1773718244796,-273.572776,0.00016455,7]
[408479120,1773718244808,-1538.0,0.00016525,2]
[408479121,1773718244818,-1538.0,0.00016544,2]
[408479122,1773718244827,-162.481565,0.0001666,7]
[408479123,1773718244835,-1012.89,0.0001667,2]
[408479124,1773718244849,-641.0,0.00016741,5]
[408479125,1773718244858,-1203.86256138,0.00016742,2]
[408479126,1773718244867,-3963.67475558,0.00016763,2]
[408479127,1773718244876,-500.0,0.00016767,2]
[408479128,1773718244886,-243.04,0.00016785,2]
[408479129,1773718244895,-678.0,0.00016788,2]
[408479130,1773718244904,-10721.0,0.00016788,2]
[408479131,1773718244913,-7898.33821042,0.00016847,2]
[408479132,1773718244923,-1553.0,0.00016855,2]
[408479133,1773718244932,-2000.0,0.000169,6]
[408479134,1773718244941,-1000.0,0.00016941,2]
[408479135,1773718244950,-160.084,0.00016964,2]
[408479136,1773718244959,-154.18409113,0.00016964,2]
[408479137,1773718244969,-2000.0,0.00016971,2]
[408479138,1773718244978,-151.0,0.00016997,2]
[408479139,1773718244987,-310.9973565,0.00016999,2]
[408479140,1773718244996,-300.0,0.00016999,2]
[408479141,1773718245005,-300.0,0.00016999,2]
[408479142,1773718245015,-696.93789086,0.00016999,2]
[408479143,1773718245024,-19236.91350718,0.00017,2]
[408479144,1773718245034,-300.0,0.00017,2]
[408479145,1773718245043,-22859.25609986,0.00017,2]
[408479146,1773718245056,-503.0,0.00017,2]
[408479147,1773718245067,-362.27543564,0.00017,2]
[408479148,1773718245076,-104.51356736,0.00017,2]
[408479149,1773718245087,-145.48643264,0.00017,2]
[408479150,1773718245096,-250.0,0.00017,2]
[408479151,1773718245105,-250.0,0.00017,2]
[408479152,1773718245115,-250.0,0.00017,2]
[408479153,1773718245124,-168.0,0.00017036,2]
[408479154,1773718245133,-152.04000554,0.00017041,2]
[408479155,1773718245142,-500.0,0.00017041,2]
[408479156,1773718245152,-1735.0,0.00017041,2]
[408479157,1773718245161,-500.0,0.00017041,2]
[408479158,1773718245169,-1012.89,0.00017058,2]
[408479159,1773718245179,-185.05,0.00017061,2]
[408479160,1773718245188,-500.0,0.00017096,2]
[408479161,1773718245197,-1735.0,0.00017096,2]
[408479162,1773718245206,-502.38809784,0.00017096,2]
[408479163,1773718245215,-1796.52977364,0.00017127,2]
[408479164,1773718245224,-500.0,0.00017151,2]
[408479165,1773718245233,-1735.0,0.00017151,2]
[408479166,1773718245243,-5000.0,0.0001716,2]
[408479167,1773718245251,-350.0,0.000172,2]
[408479168,1773718245260,-486.211883,0.000172,2]
[408479169,1773718245270,-500.0,0.00017203,7]
[408479170,1773718245280,-1200.0,0.00017203,7]
[408479171,1773718245289,-1100.0,0.00017203,7]
[408479172,1773718245299,-823.0,0.00017205,2]
[408479173,1773718245308,-500.0,0.00017205,2]
[408479174,1773718245317,-1735.0,0.00017205,2]
[408479175,1773718245326,-150.0,0.00017214,2]
[408479176,1773718245334,-150.0,0.00017214,2]
[408479177,1773718245344,-150.0,0.00017214,2]
[408479178,1773718245353,-150.0,0.00017214,2]
[408479179,1773718245362,-721.0,0.00017225,5]
[408479180,1773718245371,-1875.40668095,0.00017226,2]
[408479181,1773718245380,-1197.9361873,0.00017238,2]
[408479182,1773718245389,-291.58960666,0.00017259,2]
[408479183,1773718245397,-500.0,0.0001726,2]
[408479184,1773718245406,-1735.0,0.0001726,2]
[408479185,1773718245416,-702.72095964,0.0001727,2]
[408479186,1773718245425,-1000.0,0.00017299,2]
[408479187,1773718245434,-1000.0,0.00017299,2]
[408479188,1773718245443,-1000.0,0.00017299,2]
[408479189,1773718245618,-266.452,0.00017299,2]
[408479190,1773718245631,-190.73635762,0.00017315,2]
[408479191,1773718245642,-500.0,0.00017315,2]
[408479192,1773718245653,-1735.0,0.00017315,2]
[408479193,1773718245663,-500.0,0.00017336,2]
[408479194,1773718245672,-500.0,0.00017336,2]
[408479195,1773718245682,-500.0,0.00017336,2]
[408479196,1773718245691,-1538.0,0.00017339,2]
[408479197,1773718245701,-1260.0,0.00017353,2]
[408479198,1773718245710,-1214.0,0.00017353,2]
[408479199,1773718245720,-923.0,0.00017353,2]
[408479200,1773718245729,-1344.0,0.00017353,2]
[408479201,1773718245739,-620.0,0.00017353,2]
[408479202,1773718245751,-1044.0,0.00017353,2]
[408479203,1773718245760,-3292.0,0.00017365,2]
[408479204,1773718245769,-500.0,0.0001737,2]
[408479205,1773718245779,-1735.0,0.0001737,2]
[408479206,1773718245789,-1081.58,0.00017377,2]
[408479207,1773718245803,-312.56778016,0.00017381,2]
[408479208,1773718245812,-250.0,0.0001739,2]
[408479209,1773718245823,-250.0,0.0001739,2]
[408479210,1773718245834,-250.0,0.0001739,2]
[408479211,1773718245844,-250.0,0.0001739,2]
[408479212,1773718245853,-3963.67475558,0.0001739,2]
[408479213,1773718245863,-196.36619994,0.00017401,2]
[408479214,1773718245872,-500.0,0.00017425,2]
[408479215,1773718245882,-1735.0,0.00017425,2]
[408479216,1773718245892,-700.0,0.0001747,2]
[408479217,1773718245901,-700.0,0.0001747,2]
[408479218,1773718245910,-700.0,0.0001747,2]
[408479219,1773718245920,-500.0,0.00017479,2]
[408479220,1773718245930,-1735.0,0.00017479,2]
[408479221,1773718245940,-1538.0,0.00017489,2]
[408479222,1773718245950,-1538.0,0.000175,2]
[408479223,1773718245960,-1203.86256138,0.00017531,2]
[408479224,1773718245970,-500.0,0.00017534,2]
[408479225,1773718245979,-1735.0,0.00017534,2]
[408479226,1773718245988,-312.56778016,0.00017553,2]
[408479227,1773718245997,-2970.94293795,0.00017558,2]
[408479228,1773718246025,-713.11239565,0.00017558,2]
[408479229,1773718246269,-7898.33821042,0.00017457,2]
[408479230,1773718246280,-1672.1922651,0.00017558,2]
[408479231,1773718246291,-3932.0,0.00017559,2]
[408479232,1773718246300,-152.0,0.0001756,3]
[408479233,1773718246310,-1240.18483509,0.00017568,2]
[408479234,1773718246724,-297.81516491,0.00017568,2]
[408479235,1773718246733,-296.03589012,0.00017569,2]
[408479236,1773718246742,-500.0,0.00017569,2]
[408479237,1773718246751,-500.0,0.00017569,2]
[408479238,1773718246760,-256.17008248,0.00017569,2]
[408479239,1773718246769,-500.0,0.00017569,2]
[408479240,1773718246778,-500.0,0.00017569,2]
[408479241,1773718246789,-700.0,0.0001757,2]
[408479242,1773718246800,-243.04,0.00017571,2]
[408479243,1773718246809,-159.54092276,0.00017581,2]
[408479244,1773718246818,-500.0,0.00017589,2]
[408479245,1773718246827,-1735.0,0.00017589,2]
[408479246,1773718246837,-150.0,0.00017643,2]
[408479247,1773718246845,-500.0,0.00017644,2]
[408479248,1773718246854,-1735.0,0.00017644,2]
[408479249,1773718246863,-736.0,0.00017655,2]
[408479250,1773718246875,-168.0,0.00017697,2]
[408479251,1773718246885,-192.58227938,0.00017699,2]
[408479252,1773718246894,-1735.0,0.00017699,2]
[408479253,1773718246903,-403.0,0.000177,5]
[408479254,1773718246912,-787.22301361,0.000177,2]
[408479255,1773718246922,-168.0,0.00017705,2]
[408479256,1773718246931,-185.05,0.00017717,2]
[408479258,1773718246940,-312.56778016,0.00017725,2]
[408479259,1773718246949,-168.0,0.00017733,2]
[408479261,1773718246959,-1735.0,0.00017753,2]
[408479262,1773718246970,-373.65,0.000178,2]
[408479263,1773718246979,-249.11,0.000178,2]
[408479264,1773718246988,-500.0,0.00017808,2]
[408479265,1773718246997,-1735.0,0.00017808,2]
[408479266,1773718247006,-800.0,0.00017808,2]
[408479267,1773718247015,-155.0,0.00017812,2]
[408479268,1773718247024,-322.0092,0.00017818,2]
[408479269,1773718247034,-1502.55357062,0.00017819,2]
[408479270,1773718247043,-161.0,0.0001782,2]
[408479271,1773718247052,-202.0,0.0001782,2]
[408479272,1773718247061,-2400.0,0.0001782,2]
[408479273,1773718247070,-263.0,0.00017839,2]
[408479274,1773718247080,-1007.93692631,0.0001786,2]
[408479275,1773718247089,-500.0,0.00017863,2]
[408479276,1773718247098,-1735.0,0.00017863,2]
[408479277,1773718247107,-1000.0,0.00017884,2]
[408479278,1773718247116,-1000.0,0.00017884,2]
[408479279,1773718247125,-1000.0,0.00017884,2]
[408479280,1773718247135,-1229.81384455,0.0001789,2]
[408479281,1773718247144,-1077.65555412,0.0001789,2]
[408479282,1773718247154,-300.0,0.00017899,2]
[408479283,1773718247163,-26353.45906113,0.000179,2]
[408479284,1773718247172,-4100.0,0.000179,6]
[408479285,1773718247181,-250.0,0.000179,2]
[408479286,1773718247192,-250.0,0.000179,2]
[408479287,1773718247201,-250.0,0.000179,2]
[408479288,1773718247210,-250.000003,0.000179,2]
[408479289,1773718247219,-500.0,0.00017918,2]
[408479290,1773718247228,-1735.0,0.00017918,2]
[408479291,1773718247237,-500.0,0.00017919,2]
[408479292,1773718247247,-500.0,0.00017919,2]
[408479293,1773718247257,-527.1589517,0.00017919,2]
[408479294,1773718247266,-500.0,0.00017919,2]
[408479295,1773718247275,-500.0,0.00017919,2]
[408479296,1773718247284,-504.81663731,0.00017919,2]
[408479297,1773718247294,-500.0,0.00017919,2]
[408479298,1773718247302,-500.0,0.00017919,2]
[408479299,1773718247312,-500.0,0.00017919,2]
[408479300,1773718247321,-503.55073109,0.00017919,2]
[408479301,1773718247331,-500.0,0.00017919,2]
[408479302,1773718247340,-500.0,0.00017919,2]
[408479303,1773718247348,-500.0,0.00017919,2]
[408479304,1773718247357,-502.6227765,0.00017919,2]
[408479305,1773718247365,-350.0,0.00017919,2]
[408479306,1773718247374,-500.0,0.00017972,2]
[408479307,1773718247383,-1735.0,0.00017973,2]
[408479308,1773718247393,-338.22903938,0.00017973,2]
[408479309,1773718247402,-500.0,0.00017973,2]
[408479310,1773718247411,-20000.0,0.0001799,2]
[408479311,1773718247420,-886.07278953,0.00018,5]
[408479312,1773718247429,-468421.75262367,0.00018,5]
[408479313,1773718247442,-7480.7,0.00018,5]
[408479314,1773718247452,-4671.79999996,0.00018,5]
[408479315,1773718247463,-7619.27560028,0.00018,5]
[408479316,1773719232230,338.69,6.793e-05,2]
[408479317,1773719232443,338.69,7.15e-05,2]
[408479318,1773719232640,338.69,7.508e-05,2]
[408479319,1773719232846,338.69,7.865e-05,2]
[408479320,1773719233083,338.69,8.223e-05,2]
[408479321,1773719233295,338.69,8.58e-05,2]
[408479322,1773719233504,338.69,8.938e-05,2]
[408479323,1773719233771,338.69,9.295e-05,2]
[408479329,1773719431433,-303.72702952,9.653e-05,2]
[408479330,1773719431486,-34.96297048,9.653e-05,2]
[408479331,1773719431495,-229.0,9.653e-05,2]
[408479332,1773719431509,-338.69,0.0001001,2]
[408479333,1773719431519,-338.69,0.00010368,2]
[408479334,1773719431528,-250.0,0.00010368,2]
[408479335,1773719431537,-338.69,0.00010725,2]
[408479336,1773719431547,-338.69,0.00011083,2]
[408479337,1773719431556,-53.25550278,0.0001144,2]
[408479338,1773719431567,-285.43449722,0.0001144,2]
[408479339,1773719431577,-1034.54753426,0.00011507,2]
[408479340,1773719431596,-568.44246574,0.00011507,2]
[408479341,1773719431605,-338.69,0.00011798,2]
[408479342,1773719431616,-338.69,0.00012155,2]
[408479343,1773719431626,-338.69,0.00012513,2]
[408479344,1773719431636,-153.0,0.0001263,2]
[408479345,1773719431647,-338.69,0.0001287,2]
[408479347,1773719431657,-1184.127226,0.00013133,2]
[408479348,1773719431667,-231.32082853,0.00013199,2]
[408479350,1773719431676,-338.69,0.00013228,2]
[408479352,1773719431686,-1200.0,0.00013332,2]
[408479353,1773719431696,-513.0,0.00013333,2]
[408479354,1773719431707,-11112.4,0.00013368,2]
[408479356,1773719431717,-3866.62,0.00013584,2]
[408479358,1773719431727,-338.69,0.00013585,2]
[408479360,1773719431736,-12328.2636721,0.00013753,2]
[408479362,1773719431745,-32088.4151,0.00014018,2]
[408479364,1773719431755,-1646.6099,0.00014026,2]
[408479366,1773719431764,-150.0,0.00014073,2]
[408479367,1773719431774,-4285.15,0.00014118,2]
[408479368,1773719431784,-2466.79,0.00014118,2]
[408479369,1773719431794,-606.76803504,0.00014118,2]
[408479370,1773719431803,-151.0,0.00014118,2]
[408479371,1773719431812,-151.0,0.00014118,2]
[408479372,1773719431822,-200.0,0.00014118,2]
[408479373,1773719431832,-151.0,0.00014118,2]
[408479374,1773719431842,-151.0,0.00014118,2]
[408479375,1773719431852,-151.0,0.00014118,2]
[408479376,1773719431862,-151.0,0.00014118,2]
[408479377,1773719431871,-154.01174447,0.00014118,2]
[408479378,1773719431880,-151.0,0.00014118,2]
[408479379,1773719431890,-151.0,0.00014118,2]
[408479380,1773719431900,-151.0,0.00014118,2]
[408479381,1773719431910,-151.0,0.00014118,2]
[408479382,1773719431920,-370.24209404,0.00014125,2]
[408479383,1773719431933,-1219.35513858,0.00014125,2]
[408479384,1773719431946,-370.5319992,0.00014125,2]
[408479385,1773719431974,-933.29910589,0.00014125,2]
[408479395,1773719437836,-7106.56166229,0.00014125,2]
[408479396,1773719437846,-4999.99,0.00014126,2]
[408479397,1773719437855,-4330.65314976,0.00014126,2]
[408479398,1773719437866,-3233.22217259,0.00014126,2]
[408479399,1773719437877,-307.84749149,0.00014126,2]
[408479400,1773719437888,-1639.81624926,0.00014126,2]
[408479401,1773719437899,-5877.23223386,0.00014126,2]
[408479402,1773719437910,-5032.16426796,0.00014126,2]
[408479403,1773719437921,-4123.18124415,0.00014126,2]
[408479404,1773719437932,-653.07,0.00014126,2]
[408479405,1773719437943,-1120.43290127,0.00014126,2]
[408479406,1773719437957,-3115.85675851,0.00014126,2]
[408479407,1773719438000,-443.21634454,0.00014126,2]
[408479416,1773719439680,-10326.62718661,0.00014126,2]
[408479417,1773719439690,-150.99,0.00014126,2]
[408479418,1773719439700,-2472.81311772,0.00014153,2]
[408479419,1773719439710,-502.57400139,0.00014173,2]
[408479420,1773719439719,-401.33,0.00014253,2]
[408479421,1773719439728,-1768.07110151,0.00014253,2]
[408479422,1773719439742,-345.18889849,0.00014253,2]
[408479423,1773719439751,-1000.0,0.00014299,2]
[408479424,1773719439761,-151.0,0.0001435,2]
[408479425,1773719439770,-536.66,0.00014404,2]
[408479426,1773719439779,-500.0,0.00014404,2]
[408479427,1773719439789,-329.84951832,0.00014404,2]
[408479428,1773719439798,-500.0,0.00014404,2]
[408479429,1773719439807,-387.186876,0.00014404,2]
[408479436,1773719442578,-112.813124,0.00014404,2]
[408479438,1773719442587,-500.0,0.00014404,2]
[408479440,1773719442596,-502.37942671,0.00014404,2]
[408479442,1773719442605,-500.0,0.00014404,2]
[408479444,1773719442614,-500.0,0.00014404,2]
[408479446,1773719442624,-1045.09356149,0.00014429,2]
[408479448,1773719442633,-300.0,0.00014483,2]
[408479450,1773719442642,-288.39998063,0.00014483,2]
[408479452,1773719442651,-250.0,0.00014483,2]
[408479454,1773719442660,-154.18409114,0.00014513,2]
[408479456,1773719442669,-1893.18241605,0.0001454,2]
[408479458,1773719442678,-2500.0,0.0001454,2]
[408479460,1773719442687,-1466.87902328,0.00014628,2]
[408479462,1773719442696,-620.0,0.0001464,2]
[408479464,1773719442706,-1044.0,0.0001464,2]
[408479466,1773719442715,-3511.0,0.0001464,2]
[408479468,1773719442725,-1214.0,0.0001464,2]
[408479470,1773719442734,-923.0,0.0001464,2]
[408479471,1773719442743,-150.0,0.0001464,2]
[408479472,1773719442752,-1260.0,0.0001464,2]
[408479473,1773719442762,-6004.0,0.0001464,2]
[408479474,1773719442771,-2465.0,0.0001464,2]
[408479475,1773719442781,-414.0,0.0001464,2]
[408479476,1773719442790,-1680.0,0.00014665,2]
[408479477,1773719442800,-582.42526549,0.00014783,2]
[408479478,1773719442809,-366.99188607,0.00014849,2]
[408479479,1773719442819,-250.0,0.00015,2]
[408479480,1773719442830,-500.0,0.00015057,2]
[408479481,1773719442840,-500.0,0.00015057,2]
[408479482,1773719442851,-1893.18241596,0.00015136,2]
[408479483,1773719442861,-255.0,0.00015199,2]
[408479484,1773719442871,-161.25,0.00015365,2]
[408479485,1773719442880,-640.0,0.00015365,2]
[408479486,1773719442890,-236.69513919,0.00015526,2]
[408479487,1773719442899,-1519.0,0.00015526,2]
[408479488,1773719442910,-1519.0,0.00015526,2]
[408479489,1773719442919,-1519.0,0.00015526,2]
[408479490,1773719442928,-1519.0,0.00015526,2]
[408479491,1773719442937,-1519.0,0.00015526,2]
[408479492,1773719442947,-1519.0,0.00015526,2]
[408479493,1773719442956,-1519.0,0.00015526,2]
[408479494,1773719442966,-1519.0,0.00015526,2]
[408479495,1773719442976,-1519.0,0.00015526,2]
[408479496,1773719442985,-1519.0,0.00015526,2]
[408479497,1773719442994,-1519.0,0.00015526,2]
[408479498,1773719443005,-1519.0,0.00015526,2]
[408479499,1773719443014,-1519.0,0.00015526,2]
[408479500,1773719443024,-1519.0,0.00015526,2]
[408479501,1773719443034,-1519.0,0.00015526,2]
[408479502,1773719443043,-1519.0,0.00015526,2]
[408479503,1773719443053,-1519.0,0.00015526,2]
[408479504,1773719443062,-1519.0,0.00015526,2]
[408479505,1773719443072,-1519.0,0.00015526,2]
[408479506,1773719443081,-1315.10452817,0.00015526,2]
[408479507,1773719443091,-160.0,0.00015526,2]
[408479508,1773719443102,-161.8097692,0.00015526,2]
[408479509,1773719443112,-995.99,0.00015579,2]
[408479510,1773719443123,-500.0,0.00015589,2]
[408479511,1773719443133,-500.0,0.00015589,2]
[408479512,1773719443142,-500.0,0.00015589,2]
[408479513,1773719443153,-639.44602528,0.00015589,2]
[408479514,1773719443162,-3346.15,0.0001559,2]
[408479515,1773719443171,-160.0,0.00015604,2]
[408479516,1773719443181,-929.37600956,0.00015604,2]
[408479517,1773719443197,-221.67374801,0.00015605,2]
[408479518,1773719443206,-504.6585806,0.00015605,2]
[408479519,1773719443215,-1893.18241596,0.00015731,2]
[408479520,1773719443227,-1538.0,0.00015895,2]
[408479521,1773719443237,-2351.0,0.00016132,2]
[408479522,1773719443246,-171.221,0.00016133,2]
[408479523,1773719443255,-2506.585,0.00016133,2]
[408479524,1773719443263,-500.0,0.00016134,2]
[408479525,1773719443272,-500.0,0.00016134,2]
[408479526,1773719443282,-500.0,0.00016134,2]
[408479527,1773719443291,-490.0,0.00016134,2]
[408479528,1773719443300,-500.0,0.00016134,2]
[408479529,1773719443310,-1538.0,0.00016135,2]
[408479530,1773719443320,-500.0,0.00016135,2]
[408479531,1773719443329,-500.0,0.00016135,2]
[408479532,1773719443339,-263.0,0.000163,2]
[408479533,1773719443348,-1893.18241596,0.00016327,2]
[408479534,1773719443358,-500.0,0.00016356,2]
[408479535,1773719443369,-1100.0,0.00016356,2]
[408479536,1773719443378,-1200.0,0.00016356,2]
[408479537,1773719443387,-433.0,0.00016409,2]
[408479538,1773719443397,-262.55940531,0.00016438,2]
[408479539,1773719443407,-624.90534166,0.00016438,2]
[408479540,1773719443416,-168.0,0.00016466,2]
[408479541,1773719443425,-500.0,0.000165,2]
[408479542,1773719443435,-513.0,0.00016508,4]
[408479543,1773719443444,-168.0,0.00016537,2]
[408479544,1773719443453,-1538.0,0.00016561,2]
[408479545,1773719443462,-496.0,0.00016576,2]
[408479546,1773719443472,-496.0,0.00016601,2]
[408479547,1773719443483,-496.0,0.00016628,2]
[408479548,1773719443493,-168.0,0.00016656,2]
[408479549,1773719443502,-496.0,0.000167,2]
[408479550,1773719443517,-168.0,0.00016704,2]
[408479551,1773719443528,-160.0,0.00016707,7]
[408479552,1773719443537,-445.369715,0.00016707,7]
[408479553,1773719443547,-730.739431,0.00016707,7]
[408479554,1773719443556,-168.0,0.00016749,2]
[408479555,1773719443566,-496.0,0.00016762,2]
[408479556,1773719443575,-1463.0,0.00016775,2]
[408479557,1773719443584,-496.0,0.00016821,2]
[408479558,1773719443594,-496.0,0.0001687,2]
[408479559,1773719443603,-161.25,0.00016901,2]
[408479560,1773719443614,-1893.18241596,0.00016922,2]
[408479561,1773719443624,-181.658025,0.00016923,7]
[408479562,1773719443633,-220.550604,0.00016942,7]
[408479563,1773719443642,-443.625801,0.00016942,7]
[408479564,1773719443653,-300.0,0.00017,2]
[408479565,1773719443671,-496.0,0.00017013,2]
[408479566,1773719443682,-1000.0,0.00017048,2]
[408479567,1773719443691,-168.0,0.00017057,2]
[408479568,1773719443701,-291.0,0.00017064,2]
[408479569,1773719443710,-312.56778016,0.00017226,2]
[408479570,1773719443720,-1538.0,0.00017268,2]
[408479571,1773719443730,-640.0,0.00017285,2]
[408479572,1773719443739,-272.487038,0.00017288,7]
[408479573,1773719443749,-160.0,0.00017288,7]
[408479574,1773719443759,-198.507139,0.00017288,7]
[408479575,1773719443768,-237.014278,0.00017288,7]
[408479576,1773719443778,-160.0,0.00017345,7]
[408479577,1773719443948,-207.949594,0.00017345,7]
[408479578,1773719443958,-255.899189,0.00017345,7]
[408479579,1773719443969,-940.90201156,0.00017388,2]
[408479580,1773719443981,-1060.3,0.00017388,2]